fUST/lending_fUST_20250603
["ID","MTS","AMOUNT","RATE_DAILY","PERIOD"]
[363963370,1748947849814,-540.06,0.00018082,2]
[363963372,1748947849823,-1013.06,0.00018082,2]
[363963374,1748947849833,-167.40932512,0.00018256,2]
[363963376,1748947849842,-2379.76293757,0.00018279,2]
[363963377,1748947849851,-440.0,0.00018356,2]
[363963379,1748947849861,-484.01,0.00018356,2]
[363963381,1748947849871,-440.0,0.00018356,2]
[363963383,1748947849880,-440.0,0.00018356,2]
[363963385,1748947849890,-440.0,0.00018356,2]
[363963387,1748947849900,-455.41,0.00018356,2]
[363963389,1748947849910,-440.0,0.00018356,2]
[363963391,1748947849920,-440.0,0.00018356,2]
[363963393,1748947849932,-540.16,0.00018356,2]
[363963395,1748947849942,-440.0,0.00018356,2]
[363963397,1748947849952,-440.0,0.00018356,2]
[363963399,1748947849962,-532.1,0.00018356,2]
[363963401,1748947849972,-440.0,0.00018356,2]
[363963403,1748947849983,-463.77,0.00018356,2]
[363963404,1748947849993,-180.66971869,0.00018356,2]
[363963406,1748947850005,-297.51,0.00018356,2]
[363963408,1748947850015,-440.0,0.00018356,2]
[363963410,1748947850025,-440.0,0.00018356,2]
[363963412,1748947850034,-434.33174057,0.00018356,2]
[363963414,1748947850045,-525.78000069,0.00018356,2]
[363963415,1748947850055,-440.0,0.00018356,2]
[363963416,1748947850065,-440.0,0.00018356,2]
[363963417,1748947850074,-440.0,0.00018356,2]
[363963418,1748947850084,-455.96,0.00018356,2]
[363963419,1748947850093,-2077.18,0.00018356,2]
[363963420,1748947850103,-440.0,0.00018356,2]
[363963421,1748947850114,-440.0,0.00018356,2]
[363963422,1748947850124,-472.3,0.00018356,2]
[363963423,1748947850134,-15582.25,0.00018356,2]
[363963424,1748947850144,-440.0,0.00018356,2]
[363963425,1748947850154,-440.0,0.00018356,2]
[363963426,1748947850164,-440.0,0.00018356,2]
[363963427,1748947850173,-440.0,0.00018356,2]
[363963428,1748947850183,-440.0,0.00018356,2]
[363963429,1748947850193,-440.0,0.00018356,2]
[363963430,1748947850202,-1447.69,0.00018356,2]
[363963431,1748947850212,-350.0,0.00018356,2]
[363963432,1748947850222,-440.0,0.00018356,2]
[363963433,1748947850231,-1785.19,0.00018356,2]
[363963434,1748947850241,-165.92,0.00018356,2]
[363963435,1748947850251,-218.30990288,0.00018356,2]
[363963436,1748947850262,-490.09,0.00018356,2]
[363963437,1748947850272,-440.0,0.00018356,2]
[363963438,1748947850281,-619.81,0.00018356,2]
[363963440,1748947850290,-440.0,0.00018356,2]
[363963441,1748947850300,-2648.57,0.00018356,2]
[363963442,1748947850310,-595.28,0.00018356,2]
[363963443,1748947850320,-440.0,0.00018356,2]
[363963444,1748947850330,-2410.62,0.00018356,2]
[363963445,1748947850339,-440.0,0.00018356,2]
[363963446,1748947850349,-4321.72,0.00018356,2]
[363963447,1748947850358,-450.66,0.00018356,2]
[363963448,1748947850368,-440.0,0.00018356,2]
[363963449,1748947850378,-440.0,0.00018356,2]
[363963450,1748947850387,-897.07,0.00018356,2]
[363963451,1748947850396,-2663.09,0.00018356,2]
[363963452,1748947850406,-852.36,0.00018356,2]
[363963453,1748947850418,-440.0,0.00018356,2]
[363963454,1748947850427,-440.0,0.00018356,2]
[363963455,1748947850438,-1482.71,0.00018356,2]
[363963456,1748947850448,-636.06,0.00018356,2]
[363963457,1748947850458,-440.0,0.00018356,2]
[363963458,1748947850468,-440.0,0.00018356,2]
[363963459,1748947850477,-440.0,0.00018356,2]
[363963460,1748947850487,-2135.98,0.00018356,2]
[363963461,1748947850497,-905.57,0.00018356,2]
[363963462,1748947850507,-479.37085528,0.00018356,2]
[363963463,1748947850517,-808.85,0.00018356,2]
[363963464,1748947850527,-1071.18,0.00018356,2]
[363963465,1748947850537,-645.4,0.00018356,2]
[363963466,1748947850546,-440.0,0.00018356,2]
[363963467,1748947850556,-440.0,0.00018356,2]
[363963468,1748947850566,-440.0,0.00018356,2]
[363963469,1748947850575,-440.0,0.00018356,2]
[363963470,1748947850585,-440.0,0.00018356,2]
[363963471,1748947850607,-350.0,0.00018356,2]
[363963472,1748947850619,-682.03,0.00018356,2]
[363963473,1748947850630,-470.49,0.00018356,2]
[363963474,1748947850640,-957.6,0.00018356,2]
[363963475,1748947850650,-1228.71,0.00018356,2]
[363963476,1748947850660,-440.0,0.00018356,2]
[363963477,1748947850670,-440.0,0.00018356,2]
[363963478,1748947850680,-440.0,0.00018356,2]
[363963479,1748947850690,-556.38,0.00018356,2]
[363963480,1748947850700,-1121.18,0.00018356,2]
[363963481,1748947850710,-440.0,0.00018356,2]
[363963482,1748947850720,-540.06,0.00018356,2]
[363963483,1748947850730,-1013.06,0.00018356,2]
[363963484,1748947850739,-159.53536825,0.0001853,2]
[363963485,1748947850750,-2379.76293757,0.00018555,2]
[363963486,1748947850760,-181.05793227,0.00018555,2]
[363963487,1748947850771,-440.0,0.0001863,2]
[363963488,1748947850781,-484.01,0.0001863,2]
[363963489,1748947850791,-440.0,0.0001863,2]
[363963490,1748947850801,-440.0,0.0001863,2]
[363963492,1748947850811,-440.0,0.0001863,2]
[363963493,1748947850821,-455.41,0.0001863,2]
[363963494,1748947850831,-440.0,0.0001863,2]
[363963495,1748947850840,-440.0,0.0001863,2]
[363963496,1748947850851,-540.16,0.0001863,2]
[363963497,1748947850860,-440.0,0.0001863,2]
[363963499,1748947850870,-440.0,0.0001863,2]
[363963501,1748947850880,-532.1,0.0001863,2]
[363963503,1748947850890,-440.0,0.0001863,2]
[363963505,1748947850900,-463.77,0.0001863,2]
[363963507,1748947850910,-347.0,0.0001863,2]
[363963509,1748947850920,-440.0,0.0001863,2]
[363963511,1748947850934,-440.0,0.0001863,2]
[363963513,1748947850944,-440.0,0.0001863,2]
[363963515,1748947850954,-440.0,0.0001863,2]
[363963517,1748947850964,-455.96,0.0001863,2]
[363963519,1748947850974,-2077.18,0.0001863,2]
[363963522,1748947850984,-440.0,0.0001863,2]
[363963524,1748947850995,-440.0,0.0001863,2]
[363963526,1748947851006,-472.3,0.0001863,2]
[363963528,1748947851016,-15582.25,0.0001863,2]
[363963530,1748947851026,-440.0,0.0001863,2]
[363963532,1748947851036,-440.0,0.0001863,2]
[363963534,1748947851046,-440.0,0.0001863,2]
[363963536,1748947851055,-305.12,0.0001863,2]
[363963538,1748947851065,-440.0,0.0001863,2]
[363963540,1748947851075,-440.0,0.0001863,2]
[363963542,1748947851085,-1447.69,0.0001863,2]
[363963544,1748947851095,-440.0,0.0001863,2]
[363963546,1748947851105,-1785.19,0.0001863,2]
[363963548,1748947851114,-490.09,0.0001863,2]
[363963550,1748947851124,-421.47079416,0.0001863,2]
[363963552,1748947851134,-619.81,0.0001863,2]
[363963554,1748947851143,-440.0,0.0001863,2]
[363963556,1748947851153,-2648.57,0.0001863,2]
[363963558,1748947851163,-595.28,0.0001863,2]
[363963560,1748947851173,-460.70560515,0.0001863,2]
[363963562,1748947851182,-2410.62,0.0001863,2]
[363963564,1748947851192,-440.0,0.0001863,2]
[363963566,1748947851201,-4321.72,0.0001863,2]
[363963568,1748947851212,-450.66,0.0001863,2]
[363963571,1748947851222,-440.0,0.0001863,2]
[363963573,1748947851237,-440.0,0.0001863,2]
[363963575,1748947851246,-897.07,0.0001863,2]
[363963577,1748947851256,-2663.09,0.0001863,2]
[363963579,1748947851267,-852.36,0.0001863,2]
[363963581,1748947851276,-155.0,0.0001863,2]
[363963583,1748947851285,-193.79,0.0001863,2]
[363963585,1748947851295,-1482.71,0.0001863,2]
[363963587,1748947851306,-636.06,0.0001863,2]
[363963589,1748947851316,-440.0,0.0001863,2]
[363963591,1748947851326,-440.0,0.0001863,2]
[363963593,1748947851337,-440.0,0.0001863,2]
[363963595,1748947851347,-2135.98,0.0001863,2]
[363963597,1748947851357,-905.57,0.0001863,2]
[363963599,1748947851367,-808.85,0.0001863,2]
[363963602,1748947851378,-1071.18,0.0001863,2]
[363963604,1748947851388,-645.4,0.0001863,2]
[363963606,1748947851397,-440.0,0.0001863,2]
[363963608,1748947851407,-440.0,0.0001863,2]
[363963610,1748947851416,-440.0,0.0001863,2]
[363963626,1748947851544,-440.0,0.0001863,2]
[363963628,1748947851564,-440.0,0.0001863,2]
[363963630,1748947851573,-682.03,0.0001863,2]
[363963632,1748947851583,-470.49,0.0001863,2]
[363963634,1748947851592,-957.6,0.0001863,2]
[363963635,1748947851602,-1228.71,0.0001863,2]
[363963637,1748947851611,-440.0,0.0001863,2]
[363963639,1748947851621,-440.0,0.0001863,2]
[363963641,1748947851630,-440.0,0.0001863,2]
[363963643,1748947851639,-556.38,0.0001863,2]
[363963645,1748947851649,-1121.18,0.0001863,2]
[363963647,1748947851659,-440.0,0.0001863,2]
[363963650,1748947851670,-540.06,0.0001863,2]
[363963652,1748947851679,-1013.06,0.0001863,2]
[363963653,1748947851689,-2379.76293757,0.00018831,2]
[363963656,1748947851699,-500.24804547,0.00018847,2]
[363963658,1748947851708,-440.0,0.00018904,2]
[363963660,1748947851717,-484.01,0.00018904,2]
[363963662,1748947851727,-440.0,0.00018904,2]
[363963664,1748947851737,-440.0,0.00018904,2]
[363963665,1748947851746,-440.0,0.00018904,2]
[363963668,1748947851756,-455.41,0.00018904,2]
[363963669,1748947851765,-440.0,0.00018904,2]
[363963671,1748947851774,-440.0,0.00018904,2]
[363963673,1748947851783,-540.16,0.00018904,2]
[363963675,1748947851792,-486.69685718,0.00018904,2]
[363963678,1748947851802,-440.0,0.00018904,2]
[363963680,1748947851812,-532.1,0.00018904,2]
[363963681,1748947851822,-440.0,0.00018904,2]
[363963684,1748947851832,-463.77,0.00018904,2]
[363963686,1748947851841,-356.06492943,0.00018904,2]
[363963688,1748947851851,-440.0,0.00018904,2]
[363963690,1748947851860,-370.0,0.00018904,2]
[363963692,1748947851869,-440.0,0.00018904,2]
[363963694,1748947851878,-2077.18,0.00018904,2]
[363963696,1748947851888,-455.96,0.00018904,2]
[363963698,1748947851897,-151.21138795,0.00018904,2]
[363963700,1748947851906,-440.0,0.00018904,2]
[363963702,1748947851916,-472.3,0.00018904,2]
[363963704,1748947851925,-15582.25,0.00018904,2]
[363963706,1748947851939,-200.7,0.00018904,2]
[363963708,1748947851948,-470.59528938,0.00018904,2]
[363963710,1748947851958,-440.0,0.00018904,2]
[363963712,1748947851967,-440.0,0.00018904,2]
[363963714,1748947851979,-440.0,0.00018904,2]
[363963716,1748947851988,-1447.69,0.00018904,2]
[363963718,1748947851998,-440.0,0.00018904,2]
[363963720,1748947852010,-1785.19,0.00018904,2]
[363963722,1748947852020,-490.09,0.00018904,2]
[363963724,1748947852029,-619.81,0.00018904,2]
[363963726,1748947852039,-440.0,0.00018904,2]
[363963728,1748947852049,-2648.57,0.00018904,2]
[363963730,1748947852059,-595.28,0.00018904,2]
[363963732,1748947852068,-2410.62,0.00018904,2]
[363963734,1748947852078,-440.0,0.00018904,2]
[363963736,1748947852088,-4321.72,0.00018904,2]
[363963738,1748947852098,-450.66,0.00018904,2]
[363963740,1748947852108,-440.0,0.00018904,2]
[363963742,1748947852118,-440.0,0.00018904,2]
[363963744,1748947852127,-897.07,0.00018904,2]
[363963746,1748947852136,-2663.09,0.00018904,2]
[363963748,1748947852146,-852.36,0.00018904,2]
[363963750,1748947852155,-1482.71,0.00018904,2]
[363963752,1748947852165,-636.06,0.00018904,2]
[363963754,1748947852175,-440.0,0.00018904,2]
[363963756,1748947852184,-440.0,0.00018904,2]
[363963758,1748947852194,-446.87,0.00018904,2]
[363963760,1748947852204,-2135.98,0.00018904,2]
[363963762,1748947852214,-905.57,0.00018904,2]
[363963764,1748947852223,-808.85,0.00018904,2]
[363963767,1748947852234,-1071.18,0.00018904,2]
[363963769,1748947852244,-645.4,0.00018904,2]
[363963770,1748947852253,-212.05,0.00018904,2]
[363963772,1748947852263,-306.31371732,0.00018904,2]
[363963774,1748947852272,-440.0,0.00018904,2]
[363963776,1748947852282,-440.0,0.00018904,2]
[363963779,1748947852292,-440.0,0.00018904,2]
[363963781,1748947852302,-682.03,0.00018904,2]
[363963783,1748947852311,-470.49,0.00018904,2]
[363963785,1748947852321,-957.6,0.00018904,2]
[363963787,1748947852331,-1228.71,0.00018904,2]
[363963789,1748947852341,-440.0,0.00018904,2]
[363963791,1748947852351,-440.0,0.00018904,2]
[363963793,1748947852360,-440.0,0.00018904,2]
[363963795,1748947852369,-556.38,0.00018904,2]
[363963797,1748947852379,-1121.18,0.00018904,2]
[363963799,1748947852389,-440.0,0.00018904,2]
[363963801,1748947852400,-540.06,0.00018904,2]
[363963803,1748947852409,-2379.76293757,0.00019107,2]
[363963805,1748947852418,-160.0,0.00019177,2]
[363963807,1748947852428,-440.0,0.00019178,2]
[363963809,1748947852437,-484.01,0.00019178,2]
[363963811,1748947852447,-440.0,0.00019178,2]
[363963813,1748947852457,-440.0,0.00019178,2]
[363963815,1748947852467,-342.87135352,0.00019178,2]
[363963817,1748947852476,-455.41,0.00019178,2]
[363963819,1748947852486,-440.0,0.00019178,2]
[363963821,1748947852495,-440.0,0.00019178,2]
[363963823,1748947852506,-151.0,0.00019178,2]
[363963826,1748947852516,-540.16,0.00019178,2]
[363963827,1748947852525,-440.0,0.00019178,2]
[363963829,1748947852535,-532.1,0.00019178,2]
[363963831,1748947852545,-440.0,0.00019178,2]
[363963833,1748947852555,-463.77,0.00019178,2]
[363963835,1748947852565,-151.0,0.00019178,2]
[363963837,1748947852574,-440.0,0.00019178,2]
[363963839,1748947852584,-440.0,0.00019178,2]
[363963841,1748947852594,-455.96,0.00019178,2]
[363963843,1748947852603,-2077.18,0.00019178,2]
[363963845,1748947852613,-440.0,0.00019178,2]
[363963847,1748947852623,-151.0,0.00019178,2]
[363963849,1748947852632,-472.3,0.00019178,2]
[363963852,1748947852642,-151.0,0.00019178,2]
[363963853,1748947852653,-15582.25,0.00019178,2]
[363963855,1748947852662,-440.0,0.00019178,2]
[363963857,1748947852672,-440.0,0.00019178,2]
[363963860,1748947852682,-320.74470056,0.00019178,2]
[363963862,1748947852692,-1447.69,0.00019178,2]
[363963864,1748947852703,-440.0,0.00019178,2]
[363963866,1748947852712,-1785.19,0.00019178,2]
[363963868,1748947852722,-490.09,0.00019178,2]
[363963870,1748947852731,-619.81,0.00019178,2]
[363963872,1748947852740,-440.0,0.00019178,2]
[363963874,1748947852750,-2648.57,0.00019178,2]
[363963876,1748947852760,-595.28,0.00019178,2]
[363963878,1748947852770,-2410.62,0.00019178,2]
[363963880,1748947852780,-440.0,0.00019178,2]
[363963882,1748947852791,-4321.72,0.00019178,2]
[363963884,1748947852800,-450.66,0.00019178,2]
[363963886,1748947852810,-440.0,0.00019178,2]
[363963888,1748947852819,-440.0,0.00019178,2]
[363963890,1748947852829,-897.07,0.00019178,2]
[363963892,1748947852839,-2663.09,0.00019178,2]
[363963894,1748947852849,-151.0,0.00019178,2]
[363963896,1748947852859,-852.36,0.00019178,2]
[363963898,1748947852869,-151.0,0.00019178,2]
[363963900,1748947852879,-151.0,0.00019178,2]
[363963902,1748947852888,-1482.71,0.00019178,2]
[363963904,1748947852898,-636.06,0.00019178,2]
[363963906,1748947852907,-380.25,0.00019178,2]
[363963908,1748947852917,-440.0,0.00019178,2]
[363963910,1748947852928,-2135.98,0.00019178,2]
[363963912,1748947852940,-151.0,0.00019178,2]
[363963914,1748947852950,-905.57,0.00019178,2]
[363963917,1748947852960,-808.85,0.00019178,2]
[363963919,1748947852969,-1071.18,0.00019178,2]
[363963921,1748947852980,-645.4,0.00019178,2]
[363963923,1748947852990,-440.0,0.00019178,2]
[363963925,1748947853000,-151.0,0.00019178,2]
[363963927,1748947853011,-440.0,0.00019178,2]
[363963929,1748947853021,-440.0,0.00019178,2]
[363963931,1748947853030,-682.03,0.00019178,2]
[363963933,1748947853040,-470.49,0.00019178,2]
[363963935,1748947853050,-957.6,0.00019178,2]
[363963937,1748947853059,-1228.71,0.00019178,2]
[363963939,1748947853069,-440.0,0.00019178,2]
[363963941,1748947853079,-440.0,0.00019178,2]
[363963943,1748947853088,-440.0,0.00019178,2]
[363963945,1748947853098,-556.38,0.00019178,2]
[363963947,1748947853108,-1121.18,0.00019178,2]
[363963949,1748947853118,-440.0,0.00019178,2]
[363963951,1748947853127,-540.06,0.00019178,2]
[363963953,1748947853137,-151.0,0.00019178,2]
[363963956,1748947853147,-230.929851,0.00019178,2]
[363963958,1748947853157,-152.29865915,0.00019205,2]
[363963960,1748947853167,-500.0,0.00019229,2]
[363963962,1748947853176,-156.587,0.00019233,2]
[363963964,1748947853186,-162.380719,0.00019288,2]
[363963966,1748947853196,-168.3888056,0.00019343,2]
[363963968,1748947853205,-500.0,0.00019383,2]
[363963970,1748947853215,-500.0,0.00019383,2]
[363963972,1748947853225,-600.0,0.00019383,2]
[363963974,1748947853236,-500.0,0.00019383,2]
[363963976,1748947853247,-513.98861648,0.00019383,2]
[363963978,1748947853257,-500.91748917,0.00019383,2]
[363963989,1748947853350,-2379.76293757,0.00019383,2]
[363963991,1748947853360,-174.61919141,0.00019398,2]
[363963993,1748947853370,-254.26369834,0.00019452,2]
[363963995,1748947853379,-484.01,0.00019452,2]
[363963997,1748947853390,-440.0,0.00019452,2]
[363963999,1748947853400,-440.0,0.00019452,2]
[363964001,1748947853410,-455.41,0.00019452,2]
[363964003,1748947853420,-390.0,0.00019452,2]
[363964005,1748947853429,-440.0,0.00019452,2]
[363964007,1748947853439,-540.16,0.00019452,2]
[363964009,1748947853449,-440.0,0.00019452,2]
[363964011,1748947853459,-532.1,0.00019452,2]
[363964013,1748947853468,-152.5476667,0.00019452,2]
[363964015,1748947853478,-463.77,0.00019452,2]
[363964017,1748947853488,-440.0,0.00019452,2]
[363964019,1748947853499,-440.0,0.00019452,2]
[363964021,1748947853509,-455.96,0.00019452,2]
[363964023,1748947853518,-2077.18,0.00019452,2]
[363964025,1748947853528,-194.32,0.00019452,2]
[363964027,1748947853538,-472.3,0.00019452,2]
[363964029,1748947853548,-15582.25,0.00019452,2]
[363964031,1748947853558,-440.0,0.00019452,2]
[363964033,1748947853568,-440.0,0.00019452,2]
[363964035,1748947853577,-1447.69,0.00019452,2]
[363964038,1748947853588,-440.0,0.00019452,2]
[363964040,1748947853598,-1785.19,0.00019452,2]
[363964041,1748947853608,-490.09,0.00019452,2]
[363964043,1748947853617,-619.81,0.00019452,2]
[363964045,1748947853627,-440.0,0.00019452,2]
[363964047,1748947853637,-2648.57,0.00019452,2]
[363964050,1748947853648,-595.28,0.00019452,2]
[363964051,1748947853658,-2410.62,0.00019452,2]
[363964053,1748947853668,-440.0,0.00019452,2]
[363964056,1748947853678,-4321.72,0.00019452,2]
[363964057,1748947853687,-450.66,0.00019452,2]
[363964059,1748947853698,-440.0,0.00019452,2]
[363964062,1748947853710,-440.0,0.00019452,2]
[363964063,1748947853720,-897.07,0.00019452,2]
[363964065,1748947853730,-2663.09,0.00019452,2]
[363964068,1748947853741,-852.36,0.00019452,2]
[363964069,1748947853751,-1482.71,0.00019452,2]
[363964071,1748947853761,-636.06,0.00019452,2]
[363964074,1748947853772,-440.0,0.00019452,2]
[363964076,1748947853782,-2135.98,0.00019452,2]
[363964078,1748947853793,-905.57,0.00019452,2]
[363964079,1748947853803,-808.85,0.00019452,2]
[363964081,1748947853813,-1071.18,0.00019452,2]
[363964084,1748947853823,-645.4,0.00019452,2]
[363964086,1748947853832,-440.0,0.00019452,2]
[363964087,1748947853842,-308.670091,0.00019452,2]
[363964088,1748947853851,-308.670091,0.00019452,2]
[363964089,1748947853860,-441.95,0.00019452,2]
[363964091,1748947853870,-440.0,0.00019452,2]
[363964093,1748947853880,-682.03,0.00019452,2]
[363964095,1748947853890,-470.49,0.00019452,2]
[363964097,1748947853899,-957.6,0.00019452,2]
[363964099,1748947853908,-1228.71,0.00019452,2]
[363964101,1748947853919,-440.0,0.00019452,2]
[363964103,1748947853930,-440.0,0.00019452,2]
[363964105,1748947853942,-310.0,0.00019452,2]
[363964107,1748947853951,-556.38,0.00019452,2]
[363964109,1748947853961,-1121.18,0.00019452,2]
[363964111,1748947853971,-440.0,0.00019452,2]
[363964113,1748947853981,-540.06,0.00019452,2]
[363964115,1748947853991,-181.08010149,0.00019453,2]
[363964117,1748947854001,-309.82771968,0.00019508,2]
[363964119,1748947854012,-439.0,0.00019619,2]
[363964121,1748947854023,-240.0,0.00019619,2]
[363964123,1748947854032,-2379.76293757,0.00019659,2]
[363964125,1748947854042,-181.05793227,0.00019664,2]
[363964127,1748947854051,-200.8465109,0.00019692,2]
[363964129,1748947854062,-500.0,0.00019692,2]
[363964131,1748947854072,-484.01,0.00019726,2]
[363964133,1748947854081,-440.0,0.00019726,2]
[363964135,1748947854091,-440.0,0.00019726,2]
[363964137,1748947854100,-455.41,0.00019726,2]
[363964139,1748947854110,-313.46,0.00019726,2]
[363964141,1748947854119,-540.16,0.00019726,2]
[363964143,1748947854128,-440.0,0.00019726,2]
[363964145,1748947854138,-532.1,0.00019726,2]
[363964147,1748947854147,-463.77,0.00019726,2]
[363964150,1748947854158,-350.58,0.00019726,2]
[363964151,1748947854167,-440.0,0.00019726,2]
[363964154,1748947854178,-455.96,0.00019726,2]
[363964155,1748947854187,-2077.18,0.00019726,2]
[363964157,1748947854197,-472.3,0.00019726,2]
[363964160,1748947854206,-15582.25,0.00019726,2]
[363964161,1748947854216,-440.0,0.00019726,2]
[363964163,1748947854225,-440.0,0.00019726,2]
[363964165,1748947854235,-1447.69,0.00019726,2]
[363964168,1748947854246,-440.0,0.00019726,2]
[363964169,1748947854255,-1785.19,0.00019726,2]
[363964171,1748947854265,-490.09,0.00019726,2]
[363964173,1748947854274,-619.81,0.00019726,2]
[363964175,1748947854284,-334.29511084,0.00019726,2]
[363964177,1748947854293,-2648.57,0.00019726,2]
[363964179,1748947854303,-595.28,0.00019726,2]
[363964182,1748947854313,-2410.62,0.00019726,2]
[363964184,1748947854323,-440.0,0.00019726,2]
[363964186,1748947854333,-4321.72,0.00019726,2]
[363964188,1748947854343,-450.66,0.00019726,2]
[363964190,1748947854352,-311.95562716,0.00019726,2]
[363964191,1748947854362,-440.0,0.00019726,2]
[363964192,1748947854371,-897.07,0.00019726,2]
[363964193,1748947854380,-2663.09,0.00019726,2]
[363964194,1748947854390,-852.36,0.00019726,2]
[363964195,1748947854399,-1482.71,0.00019726,2]
[363964196,1748947854409,-636.06,0.00019726,2]
[363964197,1748947854419,-440.0,0.00019726,2]
[363964198,1748947854428,-2135.98,0.00019726,2]
[363964199,1748947854438,-905.57,0.00019726,2]
[363964200,1748947854447,-808.85,0.00019726,2]
[363964201,1748947854457,-1071.18,0.00019726,2]
[363964202,1748947854467,-645.4,0.00019726,2]
[363964203,1748947854477,-440.0,0.00019726,2]
[363964204,1748947854487,-440.0,0.00019726,2]
[363964205,1748947854497,-682.03,0.00019726,2]
[363964206,1748947854506,-470.49,0.00019726,2]
[363964207,1748947854516,-957.6,0.00019726,2]
[363964208,1748947854525,-1228.71,0.00019726,2]
[363964209,1748947854535,-440.0,0.00019726,2]
[363964210,1748947854545,-440.0,0.00019726,2]
[363964211,1748947854554,-556.38,0.00019726,2]
[363964213,1748947854564,-1121.18,0.00019726,2]
[363964215,1748947854574,-440.0,0.00019726,2]
[363964217,1748947854583,-540.06,0.00019726,2]
[363964219,1748947854594,-505.00855098,0.00019744,2]
[363964221,1748947854603,-500.84808081,0.00019744,2]
[363964223,1748947854613,-500.0,0.00019777,2]
[363964225,1748947854622,-708.946,0.00019809,2]
[363964227,1748947854632,-1200.0,0.00019931,2]
[363964229,1748947854642,-1000.0,0.00019931,2]
[363964231,1748947854651,-2379.76293757,0.00019934,2]
[363964233,1748947854660,-1500.0,0.0002,2]
[363964235,1748947854670,-484.01,0.0002,2]
[363964237,1748947854679,-440.0,0.0002,2]
[363964239,1748947854689,-440.0,0.0002,2]
[363964241,1748947854698,-455.41,0.0002,2]
[363964243,1748947854708,-540.16,0.0002,2]
[363964245,1748947854717,-440.0,0.0002,2]
[363964247,1748947854727,-532.1,0.0002,2]
[363964249,1748947854736,-463.77,0.0002,2]
[363964251,1748947854746,-515.40630807,0.0002,2]
[363964253,1748947854756,-455.96,0.0002,2]
[363964255,1748947854766,-2077.18,0.0002,2]
[363964257,1748947854775,-472.3,0.0002,2]
[363964259,1748947854784,-15582.25,0.0002,2]
[363964261,1748947854793,-440.0,0.0002,2]
[363964263,1748947854803,-440.0,0.0002,2]
[363964265,1748947854813,-1447.69,0.0002,2]
[363964267,1748947854822,-200.0,0.0002,2]
[363964269,1748947854831,-440.0,0.0002,2]
[363964271,1748947854841,-1785.19,0.0002,2]
[363964273,1748947854850,-490.09,0.0002,2]
[363964275,1748947854860,-619.81,0.0002,2]
[363964277,1748947854869,-2648.57,0.0002,2]
[363964279,1748947854879,-595.28,0.0002,2]
[363964281,1748947854888,-2410.62,0.0002,2]
[363964283,1748947854897,-244.87097002,0.0002,2]
[363964285,1748947854907,-4321.72,0.0002,2]
[363964295,1748947854998,-450.66,0.0002,2]
[363964297,1748947855010,-440.0,0.0002,2]
[363964299,1748947855023,-897.07,0.0002,2]
[363964301,1748947855033,-2663.09,0.0002,2]
[363964303,1748947855042,-852.36,0.0002,2]